lending/lending_fUSD_20260204
["ID","MTS","AMOUNT","RATE_DAILY","PERIOD"]
[404505730,1770228651858,-187.88,0.0003,22]
[404505731,1770228651868,-1500.0,0.0003,2]
[404505732,1770228651877,-1000.0,0.0003,7]
[404505733,1770228651888,-403.04435045,0.0003003,30]
[404505734,1770228651897,-152.0,0.00030116,23]
[404505735,1770228651907,-224.61761354,0.00030128,2]
[404505736,1770228651922,-1074.18460203,0.0003013,2]
[404505737,1770228651932,-13856.96702789,0.0003013,2]
[404505738,1770228651942,-634.36754791,0.0003013,2]
[404505739,1770228651952,-5061.94589413,0.0003013,2]
[404505740,1770228651962,-201.80812933,0.0003013,2]
[404505741,1770228651972,-7734.37839653,0.0003013,2]
[404505742,1770228651982,-1919.39661681,0.00030136,32]
[404505743,1770228651993,-1533.06,0.00030137,2]
[404505744,1770228652004,-193.456158,0.00030137,31]
[404505745,1770228652014,-193.456158,0.00030137,31]
[404505746,1770228652025,-193.456158,0.00030137,31]
[404505747,1770228652035,-193.456158,0.00030137,31]
[404505748,1770228652045,-168.54994789,0.00030137,5]
[404505749,1770228652054,-300.0,0.00030137,5]
[404505750,1770228652063,-14037.91311162,0.000302,2]
[404505751,1770228652073,-207.86,0.00030411,120]
[404505752,1770228652082,-7309.39789453,0.00030416,2]
[404505753,1770228652091,-163.0,0.00030447,14]
[404505754,1770228652101,-167.0,0.00030447,14]
[404505755,1770228652111,-533.0,0.00030533,13]
[404505756,1770228652121,-152.0,0.00030579,24]
[404505757,1770228652131,-463.94482134,0.00030789,2]
[404505758,1770228652141,-753.12922281,0.00030834,2]
[404505759,1770228652150,-1609.36800782,0.0003084,2]
[404505760,1770228652160,-6508.37,0.000309,2]
[404505761,1770228652178,-79044.91260092,0.0003095,2]
[404505762,1770228652187,-600.0,0.00030959,5]
[404505763,1770228652196,-343.18363412,0.00031,5]
[404505764,1770228652206,-51578.82345639,0.00031,2]
[404505765,1770228652216,-221.1,0.00031,30]
[404505766,1770228652225,-231.2,0.00031,4]
[404505767,1770228652235,-650.0,0.00031,2]
[404505768,1770228652244,-152.0,0.00031043,25]
[404505769,1770228652253,-2751.71,0.000311,14]
[404505770,1770228652263,-2000.0,0.000311,2]
[404505771,1770228652272,-359.60000876,0.00031111,30]
[404505772,1770228652282,-533.0,0.0003116,14]
[404505773,1770228652292,-358.95471846,0.00031171,2]
[404505774,1770228652302,-1335.0,0.00031287,2]
[404505775,1770228652312,-1410.0,0.00031287,2]
[404505776,1770228652323,-1271.0,0.00031287,2]
[404505777,1770228652333,-1205.0,0.00031287,2]
[404505778,1770228652343,-917.0,0.00031287,2]
[404505779,1770228652355,-3253.0,0.00031287,2]
[404505780,1770228652365,-6580.0,0.00031287,2]
[404505781,1770228652375,-1317.0,0.00031287,2]
[404505782,1770228652384,-252.78919661,0.000314,30]
[404505783,1770228652393,-300.0,0.000314,120]
[404505784,1770228652403,-19758.00561627,0.0003143,4]
[404505785,1770228652412,-197.39498561,0.000315,2]
[404505786,1770228652433,-150.0,0.000315,2]
[404505787,1770228652443,-152.0,0.00031507,26]
[404505788,1770228652452,-2015.0291959,0.000316,2]
[404505789,1770228652461,-1000.0,0.00031774,2]
[404505790,1770228652471,-901.73654749,0.00031781,5]
[404505791,1770228652480,-533.0,0.00031786,14]
[404505792,1770228652489,-7309.39789453,0.00031923,2]
[404505793,1770228652498,-152.0,0.0003197,27]
[404505794,1770228652508,-1000.0,0.00032,12]
[404505795,1770228652517,-1000.0,0.00032,12]
[404505796,1770228652527,-1000.0,0.00032,12]
[404505797,1770228652536,-936.08956918,0.00032,120]
[404505798,1770228652545,-200.0,0.00032,120]
[404505799,1770228652554,-173.31554965,0.00032,120]
[404505800,1770228652563,-250.0,0.00032,30]
[404505801,1770228652572,-789.895855,0.00032,31]
[404505802,1770228652582,-481.11077973,0.00032158,2]
[404505803,1770228652591,-500.0,0.0003216,2]
[404505804,1770228652599,-151.0,0.0003216,31]
[404505805,1770228652609,-1047.94,0.00032232,30]
[404505806,1770228652618,-894.37586304,0.000323,2]
[404505807,1770228652628,-6508.37,0.000323,2]
[404505808,1770228652637,-27667.36235948,0.000323,15]
[404505809,1770228652647,-188.377143,0.000323,31]
[404505810,1770228652657,-151.0,0.000323,31]
[404505811,1770228652666,-151.0,0.000323,31]
[404505812,1770228652683,-151.0,0.000323,31]
[404505813,1770228652693,-193.456158,0.000323,31]
[404505814,1770228652703,-193.456158,0.000323,31]
[404505815,1770228652713,-193.456158,0.000323,31]
[404505816,1770228652723,-193.456158,0.000323,31]
[404505817,1770228652733,-173.92858992,0.000323,5]
[404505818,1770228652743,-155.0,0.00032398,2]
[404505819,1770228652753,-533.0,0.00032412,15]
[404505820,1770228652763,-152.0,0.00032434,28]
[404505821,1770228652773,-152.53240761,0.000325,7]
[404505822,1770228652783,-1000.0,0.00032774,2]
[404505823,1770228652793,-4831.02220254,0.000328,2]
[404505824,1770228652803,-150.0,0.00032819,2]
[404505825,1770228652812,-1719.93257925,0.0003287,4]
[404505826,1770228652822,-561.47017983,0.00032876,2]
[404505827,1770228652831,-481.88628631,0.00032876,2]
[404505828,1770228652840,-437.31513272,0.00032876,2]
[404505829,1770228652850,-486.45261204,0.00032876,2]
[404505830,1770228652859,-500.0,0.00032876,2]
[404505831,1770228652868,-371.36985913,0.00032876,2]
[404505832,1770228652878,-500.0,0.00032876,2]
[404505833,1770228652888,-506.32985595,0.00032876,2]
[404505834,1770228652898,-1533.06,0.00032877,2]
[404505835,1770228652908,-344.87,0.00032877,2]
[404505836,1770228652925,-151.0,0.00032877,30]
[404505837,1770228652936,-151.0,0.00032877,30]
[404505838,1770228652947,-151.0,0.00032877,30]
[404505839,1770228652957,-500.0,0.00032877,2]
[404505840,1770228652967,-500.0,0.00032877,2]
[404505841,1770228652976,-500.0,0.00032877,5]
[404505842,1770228652987,-500.0,0.00032877,2]
[404505843,1770228652996,-500.0,0.00032877,2]
[404505844,1770228653006,-500.0,0.00032877,2]
[404505845,1770228653015,-358.22970248,0.00032877,2]
[404505846,1770228653025,-152.0,0.00032897,29]
[404505847,1770228653035,-1957.256997,0.00032984,60]
[404505848,1770228653045,-926.628703,0.00032984,60]
[404505849,1770228653055,-51312.68882072,0.00033,2]
[404505850,1770228653065,-26386.073197,0.00033,2]
[404505851,1770228653075,-153.57399747,0.00033,2]
[404505852,1770228653084,-1390.0,0.00033,12]
[404505853,1770228653093,-641.93369456,0.00033,30]
[404505854,1770228653104,-5223.5,0.00033,14]
[404505855,1770228653113,-300.0,0.00033,120]
[404505856,1770228653123,-1067.9,0.00033,14]
[404505857,1770228653134,-9783.42,0.00033,2]
[404505858,1770228653143,-558.672265,0.00033,14]
[404505859,1770228653153,-700.0,0.00033,2]
[404505860,1770228653164,-533.0,0.00033038,16]
[404505861,1770228653181,-500.0,0.00033178,2]
[404505862,1770228653191,-359.60000876,0.00033333,30]
[404505863,1770228653202,-152.0,0.00033361,30]
[404505864,1770228653212,-7309.39789453,0.00033429,2]
[404505865,1770228653222,-1211.62541041,0.000335,2]
[404505866,1770228653234,-259.25572211,0.00033527,2]
[404505867,1770228653244,-533.0,0.00033664,16]
[404505868,1770228653255,-5607.81,0.00033729,2]
[404505869,1770228653265,-1000.0,0.00033774,2]
[404505870,1770228653274,-1656.78,0.000338,2]
[404505871,1770228653284,-190.7482673,0.000338,2]
[404505872,1770228653293,-1000.0,0.0003382,2]
[404505873,1770228653303,-1000.0,0.0003382,2]
[404505874,1770228653313,-1000.0,0.0003382,2]
[404505875,1770228653323,-1000.0,0.0003382,2]
[404505876,1770228653333,-1000.0,0.0003382,2]
[404505877,1770228653342,-152.0,0.00033825,31]
[404505878,1770228653355,-1000.0,0.00033878,2]
[404505879,1770228653365,-1000.0,0.00033878,2]
[404505880,1770228653375,-1000.0,0.00033878,2]
[404505881,1770228653384,-1000.0,0.00033878,2]
[404505882,1770228653395,-1000.0,0.00033878,2]
[404505883,1770228653405,-6508.37,0.000339,2]
[404505884,1770228653416,-1008.0,0.00034,12]
[404505885,1770228653431,-4021.84703586,0.00034,2]
[404505886,1770228653441,-4309.74190229,0.00034,7]
[404505887,1770228653450,-8042.0,0.00034,3]
[404505888,1770228653460,-200.0,0.00034,120]
[404505889,1770228653470,-175.0,0.00034247,15]
[404505890,1770228653479,-1335.0,0.00034287,2]
[404505891,1770228653489,-1410.0,0.00034287,2]
[404505892,1770228653499,-1271.0,0.00034287,2]
[404505893,1770228653508,-1205.0,0.00034287,2]
[404505894,1770228653518,-917.0,0.00034287,2]
[404505895,1770228653528,-3253.0,0.00034287,2]
[404505896,1770228653538,-6580.0,0.00034287,2]
[404505897,1770228653697,-1317.0,0.00034287,2]
[404505898,1770228653729,-152.0,0.00034288,32]
[404505899,1770228653740,-533.0,0.0003429,17]
[404505900,1770228653749,-1731.24344268,0.0003449,2]
[404505901,1770228653759,-152.0,0.00034752,33]
[404505902,1770228653770,-1000.0,0.00034774,2]
[404505903,1770228653780,-2000.0,0.000348,2]
[404505904,1770228653790,-416.45732111,0.0003488,120]
[404505905,1770228653800,-533.0,0.00034916,17]
[404505906,1770228653810,-7309.39789453,0.00034936,2]
[404505907,1770228653821,-1917.44782067,0.00035,2]
[404505908,1770228653831,-800.0,0.00035,2]
[404505909,1770228653842,-151.0,0.00035,7]
[404505910,1770228653853,-5223.5,0.00035,14]
[404505911,1770228653863,-300.0,0.00035,120]
[404505912,1770228653874,-157.97067617,0.00035,30]
[404505913,1770228653883,-240.0,0.00035,2]
[404505914,1770228653892,-500.0,0.00035,30]
[404505915,1770228653902,-1067.9,0.00035,14]
[404505916,1770228653912,-9783.42,0.00035,2]
[404505917,1770228653926,-750.0,0.00035,2]
[404505918,1770228653936,-979.70693608,0.00035,10]
[404505919,1770228653947,-327.83557639,0.00035,120]
[404505920,1770228653957,-152.0,0.00035215,34]
[404505921,1770228653967,-151.0,0.0003538,2]
[404505922,1770228653977,-1200.0,0.00035432,14]
[404505923,1770228653987,-533.0,0.00035543,18]
[404505924,1770228653998,-359.60000876,0.00035556,30]
[404505925,1770228654008,-167830.31494684,0.0003561,2]
[404505926,1770228654019,-1999.0,0.00035616,120]
[404505927,1770228654029,-1533.06,0.00035616,2]
[404505928,1770228654039,-152.0,0.00035679,35]
[404505929,1770228654051,-1000.0,0.00035774,2]
[404505930,1770228654062,-185.0,0.000358,23]
[404505931,1770228654073,-15607.14,0.00035877,90]
[404505932,1770228654084,-216890.02727536,0.00036,2]
[404505933,1770228654095,-5666.63055001,0.00036,2]
[404505934,1770228654108,-988.0,0.00036,120]
[404505935,1770228654124,-200.0,0.00036,120]
[404505936,1770228654140,-716.41190047,0.00036,10]
[404505937,1770228654156,-5911.58621449,0.00036,2]
[404505938,1770228654174,-9660.8,0.00036,14]
[404505939,1770228654194,-301.999946,0.00036,31]
[404505940,1770228654212,-151.0,0.00036,31]
[404505941,1770228654224,-151.0,0.00036,31]
[404505942,1770228654237,-151.0,0.00036,31]
[404505943,1770228654247,-151.0,0.00036,31]
[404505944,1770228654260,-151.0,0.00036,31]
[404505945,1770228654271,-151.0,0.00036,31]
[404505946,1770228654282,-151.0,0.00036,31]
[404505947,1770228654293,-151.0,0.00036,31]
[404505948,1770228654304,-151.0,0.00036,31]
[404505949,1770228654314,-151.0,0.00036,31]
[404505950,1770228654324,-151.0,0.00036,31]
[404505951,1770228654341,-4331.664783,0.00036,28]
[404505952,1770228654353,-4331.664783,0.00036,28]
[404505953,1770228654364,-4331.664783,0.00036,28]
[404505954,1770228654375,-4331.664783,0.00036,28]
[404505955,1770228654388,-181.196236,0.00036,31]
[404505956,1770228654399,-151.0,0.00036,31]
[404505957,1770228654409,-151.0,0.00036,30]
[404505958,1770228654424,-151.0,0.00036,30]
[404505959,1770228654434,-151.0,0.00036,30]
[404505960,1770228654443,-180.17,0.00036067,10]
[404505961,1770228654452,-150.0,0.00036101,2]
[404505962,1770228654462,-152.0,0.00036143,36]
[404505963,1770228654472,-533.0,0.00036169,18]
[404505964,1770228654481,-236.21,0.00036279,10]
[404505965,1770228654490,-152.0,0.00036606,37]
[404505966,1770228654499,-1588.69203661,0.00036712,120]
[404505967,1770228654509,-1000.0,0.00036774,2]
[404505968,1770228654519,-533.0,0.00036795,19]
[404505969,1770228654529,-1610.7799174,0.000368,2]
[404505970,1770228654538,-1955.08973453,0.000368,2]
[404505971,1770228654547,-477.29,0.00036855,10]
[404505972,1770228654556,-11834.93638092,0.00036888,60]
[404505973,1770228654566,-151.2438,0.00036888,7]
[404505974,1770228654576,-14127.86146803,0.0003691,2]
[404505975,1770228654585,-165.67804903,0.00037,2]
[404505976,1770228654595,-2000.0,0.00037,30]
[404505977,1770228654604,-5223.5,0.00037,14]
[404505978,1770228654613,-300.0,0.00037,120]
[404505979,1770228654623,-361.99023935,0.00037,4]
[404505980,1770228654633,-1067.9,0.00037,14]
[404505981,1770228654643,-9783.42,0.00037,2]
[404505982,1770228654653,-800.0,0.00037,2]
[404505983,1770228654663,-1656.78,0.0003704,2]
[404505984,1770228654679,-1047.94,0.00037067,120]
[404505985,1770228654690,-152.0,0.0003707,38]
[404505986,1770228654700,-165.77149733,0.0003707,5]
[404505987,1770228654710,-185.22863418,0.000372,120]
[404505988,1770228654719,-185.22863417,0.000372,120]
[404505989,1770228654729,-185.22863417,0.000372,120]
[404505990,1770228654739,-185.22863417,0.000372,120]
[404505991,1770228654748,-1335.0,0.00037287,2]
[404505992,1770228654758,-1410.0,0.00037287,2]
[404505993,1770228654767,-1271.0,0.00037287,2]
[404505994,1770228654777,-1205.0,0.00037287,2]
[404505995,1770228654787,-917.0,0.00037287,2]
[404505996,1770228654797,-3253.0,0.00037287,2]
[404505997,1770228654806,-6580.0,0.00037287,2]
[404505998,1770228654815,-278.534,0.00037287,2]
[404505999,1770228654825,-533.0,0.00037421,20]
[404506000,1770228654834,-1000.0,0.000375,2]
[404506001,1770228654843,-4332.48710257,0.0003759,2]
[404506002,1770228654853,-1000.0,0.00037744,2]
[404506003,1770228654865,-430.57802663,0.00037807,31]
[404506004,1770228654874,-202.12071221,0.0003788,2]
[404506005,1770228654883,-7309.39789453,0.00037949,2]
[404506006,1770228654892,-210.0,0.00038,30]
[404506007,1770228654902,-526.0,0.00038,5]
[404506008,1770228654911,-200.0,0.00038,120]
[404506009,1770228654925,-556.72,0.00038,60]
[404506010,1770228654934,-287.0,0.00038,120]
[404506011,1770228654943,-378.71532796,0.00038,30]
[404506012,1770228654952,-512391.07822418,0.00038,120]
[404506013,1770228654962,-533.0,0.00038047,20]
[404506014,1770228654971,-685.24828064,0.000381,33]
[404506015,1770228654980,-685.24828064,0.000381,33]
[404506016,1770228654989,-8321.28883406,0.000381,33]
[404506017,1770228654999,-828.0,0.00038356,120]
[404506018,1770228655008,-269.85594228,0.00038356,60]
[404506019,1770228655019,-1000.0,0.00038356,5]
[404506020,1770228655028,-2784.31,0.000385,90]
[404506021,1770228655037,-201.0,0.000385,90]
[404506022,1770228655046,-2000.0,0.000385,2]
[404506023,1770228655056,-156.0,0.00038538,30]
[404506024,1770228655066,-200.0,0.00038591,6]
[404506025,1770228655075,-150.0,0.0003861,30]
[404506026,1770228655084,-533.0,0.00038673,21]
[404506027,1770228655094,-200.0,0.00038682,6]
[404506028,1770228655103,-200.0,0.00038682,6]
[404506029,1770228655112,-200.0,0.00038682,6]
[404506030,1770228655122,-200.0,0.00038682,6]
[404506031,1770228655131,-200.0,0.00038682,6]
[404506032,1770228655141,-200.0,0.00038682,6]
[404506033,1770228655150,-200.0,0.00038682,6]
[404506034,1770228655160,-200.0,0.00038682,6]
[404506035,1770228655172,-1004.48240849,0.00038767,5]
[404506036,1770228655181,-1005.50966003,0.00038824,2]
[404506037,1770228655190,-306.400828,0.00038878,120]
[404506038,1770228655200,-1361.1944,0.00038888,30]
[404506039,1770228655210,-3067.91439394,0.0003889,30]
[404506040,1770228655219,-435.0,0.00038899,31]
[404506041,1770228655228,-398.49585048,0.000389,31]
[404506042,1770228655237,-169.47001468,0.000389,30]
[404506043,1770228655246,-776.26995371,0.000389,120]
[404506044,1770228655255,-156.76368431,0.0003899,10]
[404506045,1770228655266,-30755.05375148,0.00039,2]
[404506046,1770228655275,-5223.55863181,0.00039,14]
[404506047,1770228655284,-300.0,0.00039,120]
[404506048,1770228655294,-189.84810466,0.00039,120]
[404506049,1770228655303,-51960.44562547,0.00039,90]
[404506050,1770228655312,-1067.9,0.00039,14]
[404506051,1770228655321,-9783.42,0.00039,30]
[404506052,1770228655332,-850.0,0.00039,2]
[404506053,1770228655343,-1043.285166,0.00039041,120]
[404506054,1770228655352,-1043.285166,0.00039041,120]
[404506055,1770228655362,-1043.285166,0.00039041,120]
[404506056,1770228655372,-1043.285166,0.00039041,120]
[404506057,1770228655382,-1043.285166,0.00039041,120]
[404506058,1770228655391,-1043.285166,0.00039041,120]
[404506059,1770228655401,-1043.285166,0.00039041,120]
[404506060,1770228655411,-1043.285166,0.00039041,120]
[404506061,1770228655427,-150.0,0.00039217,2]
[404506062,1770228655437,-150.0,0.00039217,2]
[404506063,1770228655447,-196.59131082,0.00039217,2]
[404506064,1770228655456,-533.0,0.000393,21]
[404506065,1770228655466,-315202.71900644,0.000394,10]
[404506066,1770228655476,-7309.39789453,0.00039455,2]
[404506067,1770228655486,-1077.86653585,0.00039498,2]
[404506068,1770228655495,-364.43904256,0.00039498,2]
[404506069,1770228655505,-1077.60902599,0.00039498,2]
[404506070,1770228655514,-1077.60902599,0.00039498,2]
[404506071,1770228655523,-1077.60902599,0.00039498,2]
[404506072,1770228655533,-1077.60902599,0.00039498,2]
[404506073,1770228655543,-1077.60902599,0.00039498,2]
[404506074,1770228655552,-1077.60902599,0.00039498,2]
[404506075,1770228655562,-1077.60902599,0.00039498,2]
[404506076,1770228655573,-1077.60902599,0.00039498,2]
[404506077,1770228655583,-1077.60902599,0.00039498,2]
[404506078,1770228655594,-1077.60902599,0.00039498,2]
[404506079,1770228655603,-1077.60902599,0.00039498,2]
[404506080,1770228655613,-1077.60902599,0.00039498,2]
[404506081,1770228655623,-1077.72616231,0.00039498,2]
[404506082,1770228655633,-1077.60902599,0.00039498,2]
[404506083,1770228655642,-300.0,0.00039498,2]
[404506084,1770228655652,-1077.60902599,0.00039498,2]
[404506085,1770228655663,-300.0,0.00039498,2]
[404506086,1770228655678,-1077.60902599,0.00039498,2]
[404506087,1770228655687,-300.0,0.00039498,2]
[404506088,1770228655697,-1077.60902599,0.00039498,2]
[404506089,1770228655706,-300.0,0.00039498,2]
[404506090,1770228655715,-1077.60902599,0.00039498,2]
[404506091,1770228655724,-300.0,0.00039498,2]
[404506092,1770228655734,-1077.60902599,0.00039498,2]
[404506093,1770228655743,-300.0,0.00039498,2]
[404506094,1770228655752,-1077.60902599,0.00039498,2]
[404506095,1770228655762,-312.81712577,0.00039498,2]
[404506096,1770228655772,-1077.86653585,0.00039498,2]
[404506097,1770228655781,-1077.86653585,0.00039498,2]
[404506098,1770228655792,-1077.86653585,0.00039498,2]
[404506099,1770228655801,-1077.86653585,0.00039498,2]
[404506100,1770228655811,-1077.86653585,0.00039498,2]
[404506101,1770228655822,-1077.86653585,0.00039498,2]
[404506102,1770228655831,-1077.86653585,0.00039498,2]
[404506103,1770228655841,-1077.86653585,0.00039498,2]
[404506104,1770228655851,-1077.86653585,0.00039498,2]
[404506105,1770228655859,-300.0,0.00039498,2]
[404506106,1770228655869,-301.14925776,0.00039498,2]
[404506107,1770228655878,-1077.86653585,0.00039498,2]
[404506108,1770228655887,-300.63886019,0.00039498,2]
[404506109,1770228655896,-369.9626131,0.00039498,2]
[404506110,1770228655906,-1077.86653585,0.00039498,2]
[404506111,1770228655917,-369.9626131,0.00039498,2]
[404506112,1770228655931,-369.9626131,0.00039498,2]
[404506113,1770228655941,-495.05125815,0.00039498,2]
[404506114,1770228655950,-300.17046024,0.00039498,2]
[404506115,1770228655959,-300.0,0.00039498,2]
[404506116,1770228655969,-369.8742244,0.00039498,2]
[404506117,1770228655978,-300.0,0.00039498,2]
[404506118,1770228655987,-300.0,0.00039498,2]
[404506119,1770228655996,-369.8742244,0.00039498,2]
[404506120,1770228656005,-402.82095731,0.00039498,2]
[404506121,1770228656014,-300.0,0.00039498,2]
[404506122,1770228656024,-369.8742244,0.00039498,2]
[404506123,1770228656033,-300.0,0.00039498,2]
[404506124,1770228656043,-369.8742244,0.00039498,2]
[404506125,1770228656052,-300.0,0.00039498,2]
[404506126,1770228656061,-369.8742244,0.00039498,2]
[404506127,1770228656072,-300.0,0.00039498,2]
[404506128,1770228656081,-369.8742244,0.00039498,2]
[404506129,1770228656090,-300.0,0.00039498,2]
[404506130,1770228656100,-369.8742244,0.00039498,2]
[404506131,1770228656109,-300.0,0.00039498,2]
[404506132,1770228656119,-369.8742244,0.00039498,2]
[404506133,1770228656128,-563.46605179,0.00039498,2]
[404506134,1770228656137,-369.8742244,0.00039498,2]
[404506135,1770228656146,-369.8742244,0.00039498,2]
[404506136,1770228656155,-369.8742244,0.00039498,2]
[404506137,1770228656164,-303.72236197,0.00039498,2]
[404506138,1770228656179,-369.8742244,0.00039498,2]
[404506139,1770228656188,-369.91444116,0.00039498,2]
[404506140,1770228656197,-369.8742244,0.00039498,2]
[404506141,1770228656206,-369.8742244,0.00039498,2]
[404506142,1770228656215,-369.8742244,0.00039498,2]
[404506143,1770228656224,-369.8742244,0.00039498,2]
[404506144,1770228656233,-369.8742244,0.00039498,2]
[404506145,1770228656242,-369.8742244,0.00039498,2]
[404506146,1770228656251,-369.8742244,0.00039498,2]
[404506147,1770228656261,-369.9626131,0.00039498,2]
[404506148,1770228656270,-369.9626131,0.00039498,2]
[404506149,1770228656280,-369.9626131,0.00039498,2]
[404506150,1770228656289,-369.9626131,0.00039498,2]
[404506151,1770228656298,-369.9626131,0.00039498,2]
[404506152,1770228656308,-369.9626131,0.00039498,2]
[404506153,1770228656327,-369.9626131,0.00039498,2]
[404506154,1770228656341,-369.9626131,0.00039498,2]
[404506155,1770228656351,-300.0,0.00039498,2]
[404506156,1770228656361,-457.00841315,0.00039498,2]
[404506157,1770228656371,-300.0,0.00039498,2]
[404506158,1770228656381,-300.0,0.00039498,2]
[404506159,1770228656391,-300.0,0.00039498,2]
[404506160,1770228656400,-301.08805537,0.00039498,2]
[404506161,1770228656409,-300.0,0.00039498,2]
[404506162,1770228656425,-300.0,0.00039498,2]
[404506163,1770228656435,-852.16411838,0.00039498,2]
[404506164,1770228656445,-304.83586518,0.00039498,2]
[404506165,1770228656454,-300.0,0.00039498,2]
[404506166,1770228656464,-880.84634433,0.00039498,2]
[404506167,1770228656473,-300.0,0.00039498,2]
[404506168,1770228656482,-300.0,0.00039498,2]
[404506169,1770228656492,-300.0,0.00039498,2]
[404506170,1770228656501,-306.01218694,0.00039498,2]
[404506171,1770228656510,-300.0,0.00039498,2]
[404506172,1770228656519,-457.00841312,0.00039498,2]
[404506173,1770228656529,-300.0,0.00039498,2]
[404506174,1770228656538,-300.0,0.00039498,2]
[404506175,1770228656547,-300.0,0.00039498,2]
[404506176,1770228656557,-300.0,0.00039498,2]
[404506177,1770228656567,-516.46654263,0.00039498,2]
[404506178,1770228656576,-300.0,0.00039498,2]
[404506179,1770228656586,-300.0,0.00039498,2]
[404506180,1770228656595,-325.16807578,0.00039498,2]
[404506181,1770228656605,-300.0,0.00039498,2]
[404506182,1770228656614,-300.0,0.00039498,2]
[404506183,1770228656816,-300.0,0.00039498,2]
[404506184,1770228656826,-852.16411838,0.00039498,2]
[404506185,1770228656840,-304.8358652,0.00039498,2]
[404506186,1770228656849,-300.0,0.00039498,2]
[404506187,1770228656859,-880.84634435,0.00039498,2]
[404506188,1770228656868,-300.0,0.00039498,2]
[404506189,1770228656877,-300.0,0.00039498,2]
[404506190,1770228656886,-300.0,0.00039498,2]
[404506191,1770228656894,-300.0,0.00039498,2]
[404506192,1770228656904,-306.01218696,0.00039498,2]
[404506193,1770228656913,-300.0,0.00039498,2]
[404506194,1770228656926,-300.0,0.00039498,2]
[404506195,1770228656935,-457.00841315,0.00039498,2]
[404506196,1770228656945,-300.0,0.00039498,2]
[404506197,1770228656955,-300.0,0.00039498,2]
[404506198,1770228656964,-300.0,0.00039498,2]
[404506199,1770228656973,-300.0,0.00039498,2]
[404506200,1770228656982,-300.0,0.00039498,2]
[404506201,1770228656991,-300.0,0.00039498,2]
[404506202,1770228657000,-516.46654263,0.00039498,2]
[404506203,1770228657009,-304.9839167,0.00039498,2]
[404506204,1770228657018,-300.0,0.00039498,2]
[404506205,1770228657027,-300.0,0.00039498,2]
[404506206,1770228657036,-300.0,0.00039498,2]
[404506207,1770228657045,-300.0,0.00039498,2]
[404506208,1770228657054,-300.0,0.00039498,2]
[404506209,1770228657064,-300.0,0.00039498,2]
[404506210,1770228657073,-300.0,0.00039498,2]
[404506211,1770228657082,-475.52626831,0.00039498,2]
[404506212,1770228657091,-300.0,0.00039498,2]
[404506213,1770228657100,-300.0,0.00039498,2]
[404506214,1770228657109,-300.0,0.00039498,2]
[404506215,1770228657118,-852.16411838,0.00039498,2]
[404506216,1770228657127,-304.83586518,0.00039498,2]
[404506217,1770228657138,-300.0,0.00039498,2]
[404506218,1770228657149,-880.84634433,0.00039498,2]
[404506219,1770228657159,-300.0,0.00039498,2]
[404506220,1770228657168,-300.0,0.00039498,2]
[404506221,1770228657182,-300.0,0.00039498,2]
[404506222,1770228657191,-300.0,0.00039498,2]
[404506223,1770228657200,-306.01218694,0.00039498,2]
[404506224,1770228657208,-300.0,0.00039498,2]
[404506225,1770228657217,-300.0,0.00039498,2]
[404506226,1770228657227,-457.00841313,0.00039498,2]
[404506227,1770228657236,-300.0,0.00039498,2]
[404506228,1770228657245,-300.0,0.00039498,2]
[404506229,1770228657255,-300.0,0.00039498,2]